{"text_format":"1","workbook":"xlsx","n_sheets":1,"sheets":["Лист1"],"not_rendered":{"charts":0,"images":0,"macros":1,"external_links":0,"defined_names":0,"comments":0,"pivot_tables":0},"unopened":[],"bounds":{"document_bytes":16777216,"sheet_cells":100000,"rows_first":2000,"rows_last":500,"rows_between":2000,"halvings":0,"cell_chars":16384,"cell_head_chars":4096},"cells_cut":0,"cells_raw":0,"read":"whole","date_system":"1900"}

{"sheet":"Лист1","index":0,"n_rows":21,"n_cols":6,"rows_kept":21,"cut":false,"hidden":false,"merged":[]}
["Массив","Значения для поиска","Процент","Значение","Номер строки","Все показатели"]
["Защитная пленка для Samsung GalaxyII","Защитная пленка для Samsung GalaxyII",{"$f":"CompareTxt(B2,$A$2:$A$21,,,1)","v":100},{"$f":"CompareTxt(B2,$A$2:$A$21,,,2)","v":"Защитная пленка для Samsung GalaxyII"},{"$f":"CompareTxt(B2,$A$2:$A$21,,,3)","v":1},{"$f":"CompareTxt(B2,$A$2:$A$21,,,-1)","v":"Процент совпадения: 100; Значение: Защитная пленка для Samsung GalaxyII; Строка в массиве mass: 1"}]
["Защитная пленка iPhone","Защитная пленка iPhone",{"$f":"CompareTxt(B3,$A$2:$A$21,,,1)","v":100},{"$f":"CompareTxt(B3,$A$2:$A$21,,,2)","v":"Защитная пленка iPhone"},{"$f":"CompareTxt(B3,$A$2:$A$21,,,3)","v":2},{"$f":"CompareTxt(B3,$A$2:$A$21)","v":"Процент совпадения: 100; Значение: Защитная пленка iPhone; Строка в массиве mass: 2"}]
["Защитная пленка iPhone 4S","Защитная пленка iPhone 4S",{"$f":"CompareTxt(B4,$A$2:$A$21,,,1)","v":100},{"$f":"CompareTxt(B4,$A$2:$A$21,,,2)","v":"Защитная пленка iPhone 4S"},{"$f":"CompareTxt(B4,$A$2:$A$21,,,3)","v":3},{"$f":"CompareTxt(B4,$A$2:$A$21)","v":"Процент совпадения: 100; Значение: Защитная пленка iPhone 4S; Строка в массиве mass: 3"}]
["Брелок Мишка","Аккумулятор Fly",{"$f":"CompareTxt(B5,$A$2:$A$21,,,1)","v":100},{"$f":"CompareTxt(B5,$A$2:$A$21,,,2)","v":"Аккумулятор  Fly 4000Ma"},{"$f":"CompareTxt(B5,$A$2:$A$21,,,3)","v":20},{"$f":"CompareTxt(B5,$A$2:$A$21)","v":"Процент совпадения: 100; Значение: Аккумулятор  Fly 4000Ma; Строка в массиве mass: 20"}]
["Брелок Тигр","Аккумулятор Fly 1000Ma",{"$f":"CompareTxt(B6,$A$2:$A$21,,,1)","v":66.666666666666671},{"$f":"CompareTxt(B6,$A$2:$A$21,,,2)","v":"Аккумулятор  Fly 4000Ma"},{"$f":"CompareTxt(B6,$A$2:$A$21,,,3)","v":20},{"$f":"CompareTxt(B6,$A$2:$A$21)","v":"Процент совпадения: 66,6666666666667; Значение: Аккумулятор  Fly 4000Ma; Строка в массиве mass: 20"}]
["Брелок со стразами Цветок"]
["Подставка под телефон"]
["Палка для Selfy"]
["Чехол защитный со стразами iPhone 6"]
["Чехол защитный прозрачный для Samsung Galaxy Note"]
["Чехол с дополнительным аккумулятором для Samsung"]
["Чехол с клавиутурой Bluetoth для планшета - 7\""]
["Чехол с клавиутурой Bluetoth для планшета - 10\""]
["Чехол Ferrary для iPhone 4S"]
["Чехол Ferrary для iPhone 5"]
["Набор для очистки линз"]
["Аккумулятор BL-4"]
["Аккумулятор BL-5"]
["Аккумулятор BL-6"]
["Аккумулятор  Fly 4000Ma"]